[Event "*** Titled Tuesday Blitz"]
[Site "Chess.com"]
[Date "2020.01.07"]
[Round "1"]
[White "BIG_Pirate"]
[Black "Incognito_Knight"]
[Result "1-0"]
[WhiteElo "2411"]
[BlackElo "2743"]
[TimeControl "180+2"]
[EndTime "13:08:51 PST"]
[Termination "BIG_Pirate won by resignation"]

1. Nf3 {[%clk 0:02:59.9]} 1... d5 {[%clk 0:03:00.9]} 2. c4 {[%clk 0:03:00.5]}
2... e6 {[%clk 0:03:00.2]} 3. g3 {[%clk 0:03:01.5]} 3... Nf6 {[%clk 0:03:01.1]}
4. Bg2 {[%clk 0:03:02.9]} 4... dxc4 {[%clk 0:03:02.6]} 5. O-O {[%clk 0:03:03]}
5... Nbd7 {[%clk 0:03:02.6]} 6. Na3 {[%clk 0:03:01.8]} 6... Bxa3 {[%clk
0:03:00.3]} 7. bxa3 {[%clk 0:03:02.7]} 7... O-O {[%clk 0:03:02]} 8. Qc2 {[%clk
0:03:02.2]} 8... a6 {[%clk 0:02:58]} 9. Qxc4 {[%clk 0:03:02.4]} 9... b5 {[%clk
0:02:58.6]} 10. Qc6 {[%clk 0:02:47.8]} 10... Rb8 {[%clk 0:02:59.3]} 11. Bb2
{[%clk 0:02:42.1]} 11... Bb7 {[%clk 0:02:59.6]} 12. Qc2 {[%clk 0:02:43.4]} 12...
c5 {[%clk 0:02:59.1]} 13. d3 {[%clk 0:02:43.1]} 13... Qe7 {[%clk 0:02:58.8]} 14.
a4 {[%clk 0:02:43.3]} 14... b4 {[%clk 0:02:54]} 15. Rab1 {[%clk 0:02:42.7]}
15... a5 {[%clk 0:02:53.9]} 16. Rfc1 {[%clk 0:02:35.2]} 16... Rfc8 {[%clk
0:02:54]} 17. Nd2 {[%clk 0:02:28]} 17... Bxg2 {[%clk 0:02:53.7]} 18. Kxg2 {[%clk
0:02:29.9]} 18... Qd6 {[%clk 0:02:49.2]} 19. Nc4 {[%clk 0:02:28.5]} 19... Qa6
{[%clk 0:02:47]} 20. Kg1 {[%clk 0:02:16.6]} 20... h6 {[%clk 0:02:47.6]} 21. Rd1
{[%clk 0:02:12.5]} 21... Nd5 {[%clk 0:02:44.8]} 22. Rbc1 {[%clk 0:02:10.4]}
22... N5b6 {[%clk 0:02:25.7]} 23. Qb3 {[%clk 0:02:07.2]} 23... Qa8 {[%clk
0:02:18.1]} 24. Nd6 {[%clk 0:02:06.7]} 24... Rc6 {[%clk 0:02:14.6]} 25. Ne4
{[%clk 0:02:04.9]} 25... Rbc8 {[%clk 0:02:10.9]} 26. Rc2 {[%clk 0:02:01.3]}
26... Qb7 {[%clk 0:01:48.9]} 27. Nd2 {[%clk 0:01:56.3]} 27... R6c7 {[%clk
0:01:39.1]} 28. Nc4 {[%clk 0:01:55.6]} 28... Nxc4 {[%clk 0:01:40.1]} 29. Rxc4
{[%clk 0:01:56.3]} 29... Qd5 {[%clk 0:01:31.5]} 30. Rg4 {[%clk 0:01:56.1]} 30...
g6 {[%clk 0:01:26]} 31. Rc1 {[%clk 0:01:55.8]} 31... Nb6 {[%clk 0:01:14.2]} 32.
h4 {[%clk 0:01:54.1]} 32... h5 {[%clk 0:01:12.1]} 33. Rg5 {[%clk 0:01:54.9]}
33... Qd7 {[%clk 0:01:04.1]} 34. Ba1 {[%clk 0:01:49.3]} 34... Nxa4 {[%clk
0:00:57]} 35. Qc4 {[%clk 0:01:43.1]} 35... Nb6 {[%clk 0:00:38.5]} 36. Qf4 {[%clk
0:01:41.1]} 36... Kh7 {[%clk 0:00:21]} 37. Qf6 {[%clk 0:01:27.8]} 37... Rg8
{[%clk 0:00:22.1]} 38. Qf3 {[%clk 0:01:09.1]} 38... f6 {[%clk 0:00:10.6]} 39.
Qxf6 {[%clk 0:01:02.2]} 39... Qf7 {[%clk 0:00:08.9]} 40. Rgxc5 {[%clk
0:00:59.8]} 40... Qxf6 {[%clk 0:00:03.2]} 41. Rxc7+ {[%clk 0:00:57.5]} 41... Qg7
{[%clk 0:00:04.7]} 42. Bxg7 {[%clk 0:00:57.8]} 42... Rxg7 {[%clk 0:00:06.6]} 43.
Rxg7+ {[%clk 0:00:49.2]} 43... Kxg7 {[%clk 0:00:08.5]} 44. Rc5 {[%clk
0:00:50.1]} 44... a4 {[%clk 0:00:09.5]} 45. Rb5 {[%clk 0:00:51.6]} 45... Nd5
{[%clk 0:00:10.9]} 46. e4 {[%clk 0:00:47]} 46... b3 {[%clk 0:00:08.8]} 47. axb3
{[%clk 0:00:46.3]} 47... Nc3 {[%clk 0:00:10.3]} 48. Rb7+ {[%clk 0:00:46.7]}
48... Kf6 {[%clk 0:00:11.3]} 49. bxa4 {[%clk 0:00:48.6]} 1-0

[Event "*** Titled Tuesday Blitz"]
[Site "Chess.com"]
[Date "2020.01.07"]
[Round "1"]
[White "crazy_machine"]
[Black "semchik73"]
[Result "1/2-1/2"]
[WhiteElo "2656"]
[BlackElo "2335"]
[TimeControl "180+2"]
[EndTime "13:08:53 PST"]
[Termination "Game drawn by stalemate"]

1. d4 {[%clk 0:02:55.9]} 1... d5 {[%clk 0:03:00.8]} 2. Nc3 {[%clk 0:02:55.9]}
2... Nf6 {[%clk 0:03:00.9]} 3. Bf4 {[%clk 0:02:56.2]} 3... c6 {[%clk 0:03:02]}
4. e3 {[%clk 0:02:54.7]} 4... g6 {[%clk 0:03:02.6]} 5. Be2 {[%clk 0:02:49.7]}
5... Bg7 {[%clk 0:03:03.7]} 6. h4 {[%clk 0:02:50.5]} 6... h5 {[%clk 0:03:01.4]}
7. Nf3 {[%clk 0:02:51.3]} 7... O-O {[%clk 0:03:00.9]} 8. O-O {[%clk 0:02:43]}
8... Bf5 {[%clk 0:02:56.1]} 9. Na4 {[%clk 0:02:36.4]} 9... Nbd7 {[%clk
0:02:56.3]} 10. b4 {[%clk 0:02:28.2]} 10... Ne4 {[%clk 0:02:56.1]} 11. Qe1
{[%clk 0:02:24.3]} 11... b5 {[%clk 0:02:42.8]} 12. Nc5 {[%clk 0:02:12.7]} 12...
Ndxc5 {[%clk 0:02:42.6]} 13. bxc5 {[%clk 0:02:14.6]} 13... a5 {[%clk 0:02:42.6]}
14. c3 {[%clk 0:02:07.4]} 14... f6 {[%clk 0:02:38.5]} 15. a4 {[%clk 0:02:04.7]}
15... Qd7 {[%clk 0:02:28.9]} 16. Qc1 {[%clk 0:01:53.2]} 16... b4 {[%clk
0:02:26.9]} 17. c4 {[%clk 0:01:50.3]} 17... Nc3 {[%clk 0:02:26.8]} 18. Qb2
{[%clk 0:01:44.2]} 18... dxc4 {[%clk 0:02:14.7]} 19. Bxc4+ {[%clk 0:01:44.1]}
19... Be6 {[%clk 0:02:15.8]} 20. Nd2 {[%clk 0:01:37.7]} 20... Bd5 {[%clk
0:02:03.2]} 21. Rfe1 {[%clk 0:01:35.4]} 21... Qg4 {[%clk 0:02:02.8]} 22. f3
{[%clk 0:01:14]} 22... Qxh4 {[%clk 0:02:00.8]} 23. Bf1 {[%clk 0:01:15.1]} 23...
f5 {[%clk 0:01:55.2]} 24. Nc4 {[%clk 0:01:00.9]} 24... Qf6 {[%clk 0:01:44.8]}
25. Nxa5 {[%clk 0:01:01.5]} 25... Rxa5 {[%clk 0:01:42.4]} 26. Qxb4 {[%clk
0:01:02.1]} 26... Rfa8 {[%clk 0:01:38.9]} 27. Qxc3 {[%clk 0:01:02.6]} 27... Rxa4
{[%clk 0:01:39.6]} 28. Rxa4 {[%clk 0:01:04.3]} 28... Rxa4 {[%clk 0:01:40.5]} 29.
Ra1 {[%clk 0:01:02.8]} 29... Rxa1 {[%clk 0:01:36.1]} 30. Qxa1 {[%clk 0:01:02.1]}
30... g5 {[%clk 0:01:33.8]} 31. Be5 {[%clk 0:01:01.7]} 31... Qe6 {[%clk
0:01:34.9]} 32. f4 {[%clk 0:00:56.9]} 32... Bxe5 {[%clk 0:01:34.2]} 33. dxe5
{[%clk 0:00:56]} 33... Bc4 {[%clk 0:01:31.9]} 34. Qd4 {[%clk 0:00:49.4]} 34...
Bxf1 {[%clk 0:01:27.8]} 35. Kxf1 {[%clk 0:00:51.1]} 35... Kf7 {[%clk 0:01:20.8]}
36. fxg5 {[%clk 0:00:51]} 36... Kg6 {[%clk 0:01:21.6]} 37. Qf4 {[%clk
0:00:38.3]} 37... Qb3 {[%clk 0:01:19.9]} 38. Kg1 {[%clk 0:00:37]} 38... Qd1+
{[%clk 0:01:20.1]} 39. Kh2 {[%clk 0:00:37.9]} 39... Qd5 {[%clk 0:01:18.1]} 40.
Qd4 {[%clk 0:00:39.2]} 40... Qe6 {[%clk 0:01:14.4]} 41. Qf4 {[%clk 0:00:29.6]}
41... Qd5 {[%clk 0:01:15.1]} 42. Qd4 {[%clk 0:00:28.4]} 42... Qe6 {[%clk
0:01:11.3]} 43. e4 {[%clk 0:00:19.3]} 43... Kxg5 {[%clk 0:01:08.8]} 44. Qe3+
{[%clk 0:00:09.3]} 44... f4 {[%clk 0:01:09.3]} 45. Qd4 {[%clk 0:00:10]} 45...
Qg4 {[%clk 0:01:09.5]} 46. Qf2 {[%clk 0:00:07]} 46... e6 {[%clk 0:01:07.4]} 47.
Qe1 {[%clk 0:00:06.9]} 47... h4 {[%clk 0:01:07.3]} 48. Qf2 {[%clk 0:00:06.6]}
48... Qg3+ {[%clk 0:01:07.8]} 49. Qxg3+ {[%clk 0:00:07.3]} 49... fxg3+ {[%clk
0:01:08.8]} 50. Kh3 {[%clk 0:00:08.5]} 50... Kh5 {[%clk 0:01:08]} 1/2-1/2

[Event "*** Titled Tuesday Blitz"]
[Site "Chess.com"]
[Date "2020.01.07"]
[Round "1"]
[White "vlad_Sid"]
[Black "HrvojeZagreb"]
[Result "1-0"]
[WhiteElo "2588"]
[BlackElo "2226"]
[TimeControl "180+2"]
[EndTime "13:08:53 PST"]
[Termination "vlad_Sid won by resignation"]

1. c4 {[%clk 0:03:01.9]} 1... f5 {[%clk 0:03:00.4]} 2. g3 {[%clk 0:03:03.3]}
2... e5 {[%clk 0:03:00.7]} 3. Bg2 {[%clk 0:03:04.6]} 3... Nf6 {[%clk 0:03:01.6]}
4. Nc3 {[%clk 0:03:06]} 4... c6 {[%clk 0:03:02.2]} 5. d4 {[%clk 0:03:05.6]} 5...
d6 {[%clk 0:03:01.1]} 6. Nf3 {[%clk 0:03:05.4]} 6... e4 {[%clk 0:03:00.1]} 7.
Nh4 {[%clk 0:03:05.1]} 7... g6 {[%clk 0:02:53.3]} 8. O-O {[%clk 0:02:59.9]} 8...
Bg7 {[%clk 0:02:54.4]} 9. f3 {[%clk 0:02:57.9]} 9... exf3 {[%clk 0:02:48.3]} 10.
Nxf3 {[%clk 0:02:56.1]} 10... O-O {[%clk 0:02:48.9]} 11. Qc2 {[%clk 0:02:49.2]}
11... Re8 {[%clk 0:02:47.2]} 12. Bg5 {[%clk 0:02:48.7]} 12... Qb6 {[%clk
0:02:45.5]} 13. Kh1 {[%clk 0:02:44.7]} 13... Ne4 {[%clk 0:02:42.8]} 14. Bf4
{[%clk 0:02:41.3]} 14... Na6 {[%clk 0:02:33.5]} 15. a3 {[%clk 0:02:38.2]} 15...
Be6 {[%clk 0:02:23.2]} 16. Nxe4 {[%clk 0:02:37.3]} 16... fxe4 {[%clk 0:02:23.4]}
17. Ng5 {[%clk 0:02:37.9]} 17... d5 {[%clk 0:02:15.4]} 18. c5 {[%clk 0:02:29.4]}
18... Qd8 {[%clk 0:02:11.8]} 19. Nxe6 {[%clk 0:02:27.1]} 19... Rxe6 {[%clk
0:02:12.2]} 20. Bh3 {[%clk 0:02:28.2]} 20... Rf6 {[%clk 0:02:05.8]} 21. Rf2
{[%clk 0:02:24.8]} 21... Nc7 {[%clk 0:01:55.8]} 22. Bg5 {[%clk 0:02:21.8]} 22...
Rxf2 {[%clk 0:01:53.9]} 23. Bxd8 {[%clk 0:02:22.3]} 23... Rxd8 {[%clk
0:01:55.8]} 24. Rf1 {[%clk 0:02:23.3]} 24... Rxf1+ {[%clk 0:01:54.9]} 25. Bxf1
{[%clk 0:02:25.2]} 25... Bxd4 {[%clk 0:01:55.9]} 26. Qb3 {[%clk 0:02:21.5]}
26... b6 {[%clk 0:01:50.3]} 27. cxb6 {[%clk 0:02:21.5]} 27... axb6 {[%clk
0:01:48.8]} 28. e3 {[%clk 0:02:21.7]} 28... Bc5 {[%clk 0:01:47.5]} 29. Qc3
{[%clk 0:02:19.1]} 29... Rf8 {[%clk 0:01:38.7]} 30. Kg2 {[%clk 0:02:18.4]} 30...
Rf3 {[%clk 0:01:30.6]} 31. b4 {[%clk 0:02:18]} 31... Bxe3 {[%clk 0:01:12.4]} 32.
Qxc6 {[%clk 0:02:17.1]} 32... Rf2+ {[%clk 0:01:11.8]} 33. Kh3 {[%clk 0:02:17.4]}
33... Rxf1 {[%clk 0:01:00.9]} 34. Qxc7 {[%clk 0:02:17.4]} 34... d4 {[%clk
0:00:47.4]} 35. Qxb6 {[%clk 0:01:56.5]} 35... Rf7 {[%clk 0:00:38.3]} 36. Qe6
{[%clk 0:01:37.9]} 36... d3 {[%clk 0:00:28.3]} 37. Qxe4 {[%clk 0:01:17]} 37...
d2 {[%clk 0:00:29.1]} 38. Qd3 {[%clk 0:01:18]} 38... Kg7 {[%clk 0:00:19.3]} 39.
b5 {[%clk 0:01:16.9]} 39... Rc7 {[%clk 0:00:17]} 40. b6 {[%clk 0:01:10.1]} 40...
Rc1 {[%clk 0:00:18.1]} 41. b7 {[%clk 0:01:07.7]} 41... d1=Q {[%clk 0:00:17.9]}
42. Qxd1 {[%clk 0:01:06.7]} 42... Rxd1 {[%clk 0:00:19.1]} 43. b8=Q {[%clk
0:01:08]} 43... Rd7 {[%clk 0:00:18.5]} 44. Qb2+ {[%clk 0:01:03.8]} 44... Bd4
{[%clk 0:00:19.4]} 45. Qb5 {[%clk 0:01:04.2]} 45... Rf7 {[%clk 0:00:18.7]} 46.
a4 {[%clk 0:01:02.8]} 46... h5 {[%clk 0:00:19.1]} 47. a5 {[%clk 0:01:00.4]}
47... Bg1 {[%clk 0:00:19.7]} 48. Kg2 {[%clk 0:00:51]} 48... Bd4 {[%clk
0:00:16.5]} 49. Qd5 {[%clk 0:00:46.1]} 49... Bf2 {[%clk 0:00:11.9]} 50. Qxf7+
{[%clk 0:00:44.7]} 50... Kxf7 {[%clk 0:00:13.5]} 51. Kxf2 {[%clk 0:00:46.6]}
51... Ke6 {[%clk 0:00:15]} 52. a6 {[%clk 0:00:48]} 52... Kd7 {[%clk 0:00:16.5]}
53. a7 {[%clk 0:00:49.9]} 1-0

[Event "*** Titled Tuesday Blitz"]
[Site "Chess.com"]
[Date "2020.01.07"]
[Round "1"]
[White "Saitama_Hero"]
[Black "Squirlolz"]
[Result "0-1"]
[WhiteElo "2301"]
[BlackElo "2642"]
[TimeControl "180+2"]
[EndTime "13:08:55 PST"]
[Termination "Squirlolz won by resignation"]

1. d4 {[%clk 0:02:59.9]} 1... Nf6 {[%clk 0:02:59.1]} 2. c4 {[%clk 0:03:01.2]}
2... e6 {[%clk 0:03:00.4]} 3. Nc3 {[%clk 0:03:02.4]} 3... c5 {[%clk 0:02:59.5]}
4. d5 {[%clk 0:03:01.7]} 4... exd5 {[%clk 0:03:01.4]} 5. cxd5 {[%clk 0:02:58.5]}
5... d6 {[%clk 0:03:02.8]} 6. e4 {[%clk 0:02:55.8]} 6... g6 {[%clk 0:03:03.7]}
7. f4 {[%clk 0:02:57.2]} 7... Bg7 {[%clk 0:03:04.7]} 8. Bb5+ {[%clk 0:02:58.7]}
8... Nfd7 {[%clk 0:03:06.2]} 9. a4 {[%clk 0:02:59.8]} 9... a6 {[%clk 0:03:01.9]}
10. Bc4 {[%clk 0:02:59.4]} 10... Qh4+ {[%clk 0:03:02.1]} 11. g3 {[%clk
0:02:59.1]} 11... Qe7 {[%clk 0:03:03.5]} 12. e5 {[%clk 0:02:47.8]} 12... O-O
{[%clk 0:02:41.7]} 13. Nf3 {[%clk 0:02:47.5]} 13... dxe5 {[%clk 0:02:42.6]} 14.
d6 {[%clk 0:02:46.3]} 14... Qd8 {[%clk 0:02:40.4]} 15. O-O {[%clk 0:02:00.4]}
15... Nc6 {[%clk 0:02:39.3]} 16. Ng5 {[%clk 0:01:32.9]} 16... Nb6 {[%clk
0:02:02.5]} 17. Ba2 {[%clk 0:00:59.6]} 17... Nd4 {[%clk 0:01:47.5]} 18. a5
{[%clk 0:00:57]} 18... Nd7 {[%clk 0:01:33.7]} 19. Nd5 {[%clk 0:00:50.9]} 19...
e4 {[%clk 0:00:41.5]} 20. Ne7+ {[%clk 0:00:48.6]} 20... Kh8 {[%clk 0:00:42.4]}
21. Nxf7+ {[%clk 0:00:41.3]} 21... Rxf7 {[%clk 0:00:43.6]} 22. Bxf7 {[%clk
0:00:39.5]} 22... Nf6 {[%clk 0:00:44.9]} 23. Nxc8 {[%clk 0:00:25.2]} 23... Rxc8
{[%clk 0:00:46.8]} 24. Be3 {[%clk 0:00:22.7]} 24... Qxd6 {[%clk 0:00:47.5]} 25.
Bc4 {[%clk 0:00:16.9]} 25... h5 {[%clk 0:00:31.7]} 26. h3 {[%clk 0:00:16.3]}
26... Rd8 {[%clk 0:00:24.8]} 27. Kg2 {[%clk 0:00:16.9]} 27... Qc6 {[%clk
0:00:25.2]} 28. Qa4 {[%clk 0:00:12.1]} 28... Nf5 {[%clk 0:00:25.4]} 29. Bc1
{[%clk 0:00:08.8]} 29... e3+ {[%clk 0:00:25.5]} 30. Qxc6 {[%clk 0:00:08]} 30...
bxc6 {[%clk 0:00:24.9]} 31. Bxa6 {[%clk 0:00:06.3]} 31... Ne4 {[%clk 0:00:22.8]}
32. g4 {[%clk 0:00:03.9]} 32... Nh4+ {[%clk 0:00:24]} 33. Kh1 {[%clk 0:00:04]}
33... Ng3+ {[%clk 0:00:22.9]} 34. Kg1 {[%clk 0:00:04.1]} 34... e2 {[%clk
0:00:16.9]} 35. Re1 {[%clk 0:00:04.4]} 35... Nf3+ {[%clk 0:00:10.5]} 36. Kf2
{[%clk 0:00:06.3]} 36... Nxe1 {[%clk 0:00:12.2]} 37. Kxe1 {[%clk 0:00:07.1]}
37... Rd1+ {[%clk 0:00:12.6]} 38. Kf2 {[%clk 0:00:07.9]} 38... e1=Q+ {[%clk
0:00:14]} 39. Kf3 {[%clk 0:00:07.6]} 39... h4 {[%clk 0:00:09.9]} 40. Bc4 {[%clk
0:00:06.2]} 40... Qe4+ {[%clk 0:00:10.7]} 41. Kf2 {[%clk 0:00:06.6]} 41... Qxc4
{[%clk 0:00:11.9]} 0-1

[Event "*** Titled Tuesday Blitz"]
[Site "Chess.com"]
[Date "2020.01.07"]
[Round "1"]
[White "DamianoLew95"]
[Black "saraswathii"]
[Result "1-0"]
[WhiteElo "2592"]
[BlackElo "2228"]
[TimeControl "180+2"]
[EndTime "13:08:56 PST"]
[Termination "DamianoLew95 won on time"]

1. e4 {[%clk 0:02:55.3]} 1... c5 {[%clk 0:02:59.5]} 2. Nf3 {[%clk 0:02:56.3]}
2... e6 {[%clk 0:02:52.9]} 3. d3 {[%clk 0:02:49.6]} 3... Nc6 {[%clk 0:02:45.7]}
4. Nbd2 {[%clk 0:02:50.5]} 4... Nf6 {[%clk 0:02:45.1]} 5. g3 {[%clk 0:02:51]}
5... d5 {[%clk 0:02:45.8]} 6. Bg2 {[%clk 0:02:52]} 6... Be7 {[%clk 0:02:46.1]}
7. O-O {[%clk 0:02:52.9]} 7... O-O {[%clk 0:02:46.3]} 8. Re1 {[%clk 0:02:54.4]}
8... Qc7 {[%clk 0:02:46.1]} 9. e5 {[%clk 0:02:51.8]} 9... Nd7 {[%clk 0:02:46.2]}
10. Qe2 {[%clk 0:02:53.2]} 10... f6 {[%clk 0:02:40]} 11. exf6 {[%clk 0:02:53.3]}
11... Nxf6 {[%clk 0:02:38.5]} 12. Nf1 {[%clk 0:02:44.5]} 12... Bd6 {[%clk
0:02:36.4]} 13. Bg5 {[%clk 0:02:43]} 13... e5 {[%clk 0:02:36.3]} 14. Nh4 {[%clk
0:02:42.2]} 14... Be6 {[%clk 0:02:34.2]} 15. Ne3 {[%clk 0:02:39.2]} 15... Nd4
{[%clk 0:02:28.9]} 16. Qd1 {[%clk 0:02:37.7]} 16... Qf7 {[%clk 0:02:05.5]} 17.
c3 {[%clk 0:02:34.9]} 17... Nc6 {[%clk 0:02:02.4]} 18. Qd2 {[%clk 0:02:20.1]}
18... Rae8 {[%clk 0:01:38.9]} 19. Bxf6 {[%clk 0:02:13.9]} 19... gxf6 {[%clk
0:01:35.2]} 20. Nef5 {[%clk 0:02:14]} 20... Bxf5 {[%clk 0:01:35.3]} 21. Nxf5
{[%clk 0:02:14.5]} 21... Qe6 {[%clk 0:01:36.3]} 22. Bh3 {[%clk 0:01:51.9]} 22...
Kh8 {[%clk 0:01:17.5]} 23. Qh6 {[%clk 0:01:49.2]} 23... Qd7 {[%clk 0:00:39.5]}
24. Qh5 {[%clk 0:01:37.1]} 24... Qc7 {[%clk 0:00:21.9]} 25. c4 {[%clk
0:01:31.7]} 25... Nb4 {[%clk 0:00:19.4]} 26. Rad1 {[%clk 0:01:27.7]} 26... d4
{[%clk 0:00:14.7]} 27. Re4 {[%clk 0:01:26.3]} 27... Rd8 {[%clk 0:00:10.2]} 28.
Rh4 {[%clk 0:01:15]} 28... Rf7 {[%clk 0:00:06]} 29. a3 {[%clk 0:01:03.5]} 29...
Nc6 {[%clk 0:00:05.4]} 30. Re1 {[%clk 0:01:05.2]} 30... Rdf8 {[%clk 0:00:02.4]}
31. Ree4 {[%clk 0:01:04.6]} 31... Ne7 {[%clk 0:00:02.8]} 32. Qh6 {[%clk
0:00:53.2]} 32... Nxf5 {[%clk 0:00:02.8]} 33. Bxf5 {[%clk 0:00:55.1]} 33... Rg8
{[%clk 0:00:04.1]} 34. Rh5 {[%clk 0:00:44.3]} 34... Bf8 {[%clk 0:00:03.7]} 35.
Qd2 {[%clk 0:00:42.7]} 35... Rgg7 {[%clk 0:00:04.4]} 36. Qe2 {[%clk 0:00:40.4]}
36... a6 {[%clk 0:00:04.2]} 37. Reh4 {[%clk 0:00:40.9]} 37... b5 {[%clk
0:00:04.6]} 38. b3 {[%clk 0:00:41.8]} 38... bxc4 {[%clk 0:00:05]} 39. bxc4
{[%clk 0:00:43.7]} 39... Qa5 {[%clk 0:00:06.1]} 40. Qe4 {[%clk 0:00:42.3]} 40...
Qc7 {[%clk 0:00:05.1]} 41. Rh6 {[%clk 0:00:41.4]} 41... a5 {[%clk 0:00:03.7]}
42. Be6 {[%clk 0:00:41.3]} 42... Re7 {[%clk 0:00:04.3]} 43. Rxf6 {[%clk
0:00:41.7]} 43... Qd8 {[%clk 0:00:05.3]} 44. Qf5 {[%clk 0:00:40.6]} 1-0

[Event "*** Titled Tuesday Blitz"]
[Site "Chess.com"]
[Date "2020.01.07"]
[Round "1"]
[White "Martins-BR"]
[Black "Sven_Tica"]
[Result "0-1"]
[WhiteElo "2321"]
[BlackElo "2659"]
[TimeControl "180+2"]
[EndTime "13:08:58 PST"]
[Termination "Sven_Tica won by resignation"]

1. e4 {[%clk 0:02:54.8]} 1... c5 {[%clk 0:03:01.1]} 2. Nf3 {[%clk 0:02:54.9]}
2... Nf6 {[%clk 0:03:02.7]} 3. e5 {[%clk 0:02:53]} 3... Nd5 {[%clk 0:03:04.1]}
4. d4 {[%clk 0:02:52.2]} 4... cxd4 {[%clk 0:03:04.8]} 5. Qxd4 {[%clk 0:02:50.1]}
5... e6 {[%clk 0:03:04.7]} 6. Bd3 {[%clk 0:02:47.2]} 6... Nc6 {[%clk 0:03:05.7]}
7. Qe4 {[%clk 0:02:48.1]} 7... d6 {[%clk 0:03:00.6]} 8. O-O {[%clk 0:02:33.4]}
8... dxe5 {[%clk 0:03:01.7]} 9. Nxe5 {[%clk 0:02:34]} 9... Nxe5 {[%clk
0:03:02.6]} 10. Qxe5 {[%clk 0:02:34.8]} 10... Qd6 {[%clk 0:03:00.8]} 11. Qxd6
{[%clk 0:02:31]} 11... Bxd6 {[%clk 0:03:01.2]} 12. a3 {[%clk 0:02:29]} 12... Bd7
{[%clk 0:03:00.7]} 13. Rd1 {[%clk 0:02:25.2]} 13... Be5 {[%clk 0:02:55.2]} 14.
c4 {[%clk 0:02:22.1]} 14... Nf4 {[%clk 0:02:51.4]} 15. Bf1 {[%clk 0:02:21]}
15... Bc6 {[%clk 0:02:50.5]} 16. g3 {[%clk 0:02:18.8]} 16... Ng6 {[%clk
0:02:49.1]} 17. f4 {[%clk 0:02:17]} 17... Bf6 {[%clk 0:02:49.2]} 18. Nc3 {[%clk
0:02:15.8]} 18... a6 {[%clk 0:02:44]} 19. Be3 {[%clk 0:02:13.7]} 19... Ne7
{[%clk 0:02:42.8]} 20. Bb6 {[%clk 0:02:07.1]} 20... O-O {[%clk 0:02:42.1]} 21.
Kf2 {[%clk 0:02:04.9]} 21... Rac8 {[%clk 0:02:39.3]} 22. Rac1 {[%clk 0:01:56.7]}
22... Nf5 {[%clk 0:02:34]} 23. b3 {[%clk 0:01:31.7]} 23... h5 {[%clk 0:02:30.5]}
24. Bh3 {[%clk 0:01:27.4]} 24... g6 {[%clk 0:02:29.7]} 25. Bxf5 {[%clk
0:01:21.9]} 25... gxf5 {[%clk 0:02:31.6]} 26. Bd4 {[%clk 0:01:16.5]} 26... Be7
{[%clk 0:02:32.8]} 27. b4 {[%clk 0:01:10.9]} 27... Rfd8 {[%clk 0:02:28.5]} 28.
Ne2 {[%clk 0:01:03.1]} 28... Be4 {[%clk 0:02:25.8]} 29. c5 {[%clk 0:00:55.6]}
29... Rd7 {[%clk 0:02:22.7]} 30. Be5 {[%clk 0:00:46.3]} 30... Rcd8 {[%clk
0:02:19.4]} 31. Ke1 {[%clk 0:00:44.3]} 31... f6 {[%clk 0:02:12.4]} 32. Bb2
{[%clk 0:00:42.3]} 32... Kf7 {[%clk 0:02:12.7]} 33. Rxd7 {[%clk 0:00:42.2]}
33... Rxd7 {[%clk 0:02:13]} 34. Rd1 {[%clk 0:00:44.1]} 34... Rxd1+ {[%clk
0:02:12.3]} 35. Kxd1 {[%clk 0:00:46]} 35... Ke8 {[%clk 0:02:13.8]} 36. Kd2
{[%clk 0:00:46.8]} 36... Kd7 {[%clk 0:02:15.1]} 37. Nd4 {[%clk 0:00:45.5]} 37...
e5 {[%clk 0:02:08.2]} 38. Ne2 {[%clk 0:00:46.1]} 38... Ke6 {[%clk 0:02:09]} 39.
Ke3 {[%clk 0:00:46]} 39... Bd8 {[%clk 0:01:53.8]} 40. Nc3 {[%clk 0:00:45.9]}
40... Bh1 {[%clk 0:01:54.6]} 41. Ne2 {[%clk 0:00:41.1]} 41... Bc7 {[%clk
0:01:55]} 42. Bc3 {[%clk 0:00:38.2]} 42... Kd5 {[%clk 0:01:54.9]} 43. Bb2 {[%clk
0:00:36.6]} 43... Kc4 {[%clk 0:01:56]} 44. Bc1 {[%clk 0:00:26.7]} 44... b6
{[%clk 0:01:51.9]} 45. cxb6 {[%clk 0:00:22]} 45... Bxb6+ {[%clk 0:01:53.8]} 46.
Kd2 {[%clk 0:00:23]} 46... Kb3 {[%clk 0:01:47.5]} 47. Ke1 {[%clk 0:00:17.4]}
47... Kc2 {[%clk 0:01:45.7]} 48. fxe5 {[%clk 0:00:17.1]} 48... fxe5 {[%clk
0:01:44.8]} 49. Bh6 {[%clk 0:00:10.2]} 49... Kb2 {[%clk 0:01:44]} 50. Bg7 {[%clk
0:00:10.6]} 50... Bc7 {[%clk 0:01:42.8]} 51. a4 {[%clk 0:00:09.7]} 51... Bc6
{[%clk 0:01:41.5]} 52. b5 {[%clk 0:00:07.9]} 52... axb5 {[%clk 0:01:42.7]} 53.
a5 {[%clk 0:00:09]} 53... Bxa5+ {[%clk 0:01:42.8]} 54. Kf2 {[%clk 0:00:08.3]}
54... Bb6+ {[%clk 0:01:43.9]} 55. Ke1 {[%clk 0:00:08.8]} 55... Bc7 {[%clk
0:01:45]} 56. Nf4 {[%clk 0:00:08.2]} 56... Kc2 {[%clk 0:01:38.1]} 57. Nxh5
{[%clk 0:00:08.2]} 57... b4 {[%clk 0:01:39.6]} 0-1